fUSD/lending_fUSD_20240508
["ID","MTS","AMOUNT","RATE_DAILY","PERIOD"]
[326607335,1715136295814,-1243.67839404,9.898e-05,2]
[326607336,1715136295839,-311.32160596,9.899e-05,2]
[326607340,1715136332335,-97.84054497,9.899e-05,2]
[326607347,1715136424126,423.15551503,9.999e-05,2]
[326607354,1715136595401,368.0995126,9.999e-05,2]
[326607356,1715136603434,150.0,9.999e-05,2]
[326607357,1715136603647,151.42466987,9.999e-05,2]
[326607361,1715136633842,-381.218,0.0001,2]
[326607363,1715136633856,-898.27894311,0.0001,2]
[326607367,1715136633866,-7935.81979436,0.0001,2]
[326607371,1715136633877,-446099.7022757,0.0001,2]
[326607373,1715136633889,-112524.13788646,0.0001,2]
[326607375,1715136633900,-4575.6,0.0001,2]
[326607378,1715136633912,-818.26057678,0.0001,2]
[326607380,1715136633924,-485.80288671,0.0001,2]
[326607382,1715136633936,-5438.39379598,0.0001,2]
[326607384,1715136633947,-109514.51417405,0.0001,2]
[326607386,1715136633956,-150.0,0.00010094,2]
[326607388,1715136633965,-300.0,0.00010094,2]
[326607390,1715136633975,-4336.89810649,0.00010095,2]
[326607392,1715136633984,-250.0,0.00010774,2]
[326607394,1715136633994,-166.78278404,0.00011,2]
[326607396,1715136634003,-302.19893156,0.00011071,2]
[326607398,1715136634012,-178.64,0.00011188,2]
[326607400,1715136634022,-178.64,0.00011334,2]
[326607403,1715136634032,-23900.0,0.0001139,2]
[326607405,1715136634041,-299.99,0.0001139,2]
[326607407,1715136634051,-499.99,0.0001139,2]
[326607409,1715136634061,-27434.09,0.0001139,2]
[326607411,1715136634070,-191.88817368,0.00011479,2]
[326607413,1715136634079,-10236.3,0.00011479,2]
[326607415,1715136634088,-150.99,0.00011479,2]
[326607417,1715136634098,-150.99,0.00011479,2]
[326607419,1715136634107,-1112.37,0.00011479,2]
[326607421,1715136634116,-178.64,0.0001148,2]
[326607423,1715136634125,-22801.82444342,0.00011537,2]
[326607425,1715136634134,-317.1763,0.00011547,2]
[326607426,1715136634144,-7500.0,0.00011554,2]
[326607428,1715136634153,-8786.0456,0.00011556,2]
[326607429,1715136634163,-1000.0,0.00011556,2]
[326607430,1715136634173,-2500.0,0.00011556,2]
[326607431,1715136634182,-20887.7827,0.00011559,2]
[326607432,1715136634191,-178.64,0.00011625,2]
[326607433,1715136634200,-269.69344231,0.00011648,2]
[326607434,1715136634210,-1242.7337508,0.00011653,2]
[326607435,1715136634219,-446.76541018,0.00011655,2]
[326607436,1715136634228,-2096.04,0.00011656,2]
[326607437,1715136634237,-39116.4304,0.00011657,2]
[326607438,1715136634246,-1000.0,0.00011657,2]
[326607439,1715136634255,-92094.8321575,0.00011657,2]
[326607440,1715136634271,-619.65012665,0.00011657,2]
[326607441,1715136634283,-7285.51771585,0.00011657,2]
[326607442,1715136634292,-205442.12668737,0.00011659,2]
[326607454,1715136638792,-6843.9,0.00011659,2]
[326607472,1715136638814,-4028.9378683,0.00011659,2]
[326607478,1715136638825,-28685.03544433,0.00011659,2]
[326607481,1715136638835,-45866.65270689,0.000117,2]
[326607485,1715136638844,-178.64,0.00011771,2]
[326607488,1715136638853,-500.0,0.000118,4]
[326607491,1715136638862,-1100.0,0.000119,4]
[326607496,1715136638872,-2105.48982895,0.00012,2]
[326607498,1715136638881,-150.59,0.00012,2]
[326607502,1715136638890,-150.59,0.00012,2]
[326607505,1715136638899,-150.59,0.00012,2]
[326607510,1715136638909,-150.59,0.00012,2]
[326607513,1715136638919,-150.59,0.00012,2]
[326607515,1715136638929,-184.33,0.00012033,2]
[326607518,1715136638938,-1700.0,0.000126,4]
[326607520,1715136638947,-2300.0,0.000127,4]
[326607523,1715136638956,-2900.0,0.000128,4]
[326607526,1715136638965,-500.0,0.000129,4]
[326607528,1715136638974,-1032.74753886,0.000129,2]
[326607531,1715136638984,-194.06362401,0.000129,2]
[326607533,1715136638993,-529.22163113,0.000129,2]
[326607535,1715136639003,-1000.0,0.00012903,2]
[326607538,1715136639012,-14783.0,0.00012926,2]
[326607540,1715136639022,-170.06139776,0.00012951,2]
[326607543,1715136639031,-150.59,0.0001299,2]
[326607546,1715136639041,-150.59,0.0001299,2]
[326607548,1715136639050,-150.59,0.0001299,2]
[326607550,1715136639059,-150.59,0.0001299,2]
[326607552,1715136639068,-150.59,0.0001299,2]
[326607554,1715136639078,-150.59,0.0001299,2]
[326607556,1715136639087,-150.59,0.0001299,2]
[326607558,1715136639097,-150.59,0.0001299,2]
[326607560,1715136639106,-150.59,0.0001299,2]
[326607562,1715136639116,-150.59,0.0001299,2]
[326607564,1715136639125,-150.59,0.0001299,2]
[326607566,1715136639135,-150.59,0.0001299,2]
[326607568,1715136639144,-150.59,0.0001299,2]
[326607570,1715136639154,-150.59,0.0001299,2]
[326607572,1715136639164,-150.59,0.0001299,2]
[326607574,1715136639173,-150.59,0.0001299,2]
[326607576,1715136639182,-150.59,0.0001299,2]
[326607578,1715136639192,-150.59,0.0001299,2]
[326607580,1715136639201,-150.59,0.0001299,2]
[326607582,1715136639211,-150.59,0.0001299,2]
[326607584,1715136639221,-150.59,0.0001299,2]
[326607586,1715136639232,-150.59,0.0001299,2]
[326607588,1715136639242,-150.59,0.0001299,2]
[326607590,1715136639253,-150.59,0.0001299,2]
[326607592,1715136639262,-150.59,0.0001299,2]
[326607594,1715136639277,-150.59,0.0001299,2]
[326607596,1715136639286,-150.59,0.0001299,2]
[326607598,1715136639296,-150.59,0.0001299,2]
[326607600,1715136639307,-150.59,0.0001299,2]
[326607602,1715136639318,-150.59,0.0001299,2]
[326607604,1715136639328,-150.59,0.0001299,2]
[326607606,1715136639338,-150.59,0.0001299,2]
[326607608,1715136639350,-150.59,0.0001299,2]
[326607610,1715136639359,-150.59,0.0001299,2]
[326607612,1715136639369,-150.59,0.0001299,2]
[326607614,1715136639379,-150.59,0.0001299,2]
[326607616,1715136639388,-150.59,0.0001299,2]
[326607618,1715136639398,-150.59,0.0001299,2]
[326607620,1715136639408,-150.59,0.0001299,2]
[326607622,1715136639417,-150.59,0.0001299,2]
[326607624,1715136639427,-150.59,0.0001299,2]
[326607626,1715136639436,-150.59,0.0001299,2]
[326607628,1715136639446,-150.59,0.0001299,2]
[326607630,1715136639456,-150.59,0.0001299,2]
[326607632,1715136639466,-150.59,0.0001299,2]
[326607634,1715136639475,-150.59,0.0001299,2]
[326607636,1715136639485,-150.59,0.0001299,2]
[326607638,1715136639495,-150.59,0.0001299,2]
[326607640,1715136639504,-150.59,0.0001299,2]
[326607642,1715136639513,-150.59,0.0001299,2]
[326607644,1715136639522,-150.59,0.0001299,2]
[326607646,1715136639532,-150.59,0.0001299,2]
[326607648,1715136639541,-150.59,0.0001299,2]
[326607650,1715136639550,-150.59,0.0001299,2]
[326607652,1715136639559,-150.59,0.0001299,2]
[326607654,1715136639569,-150.59,0.0001299,2]
[326607656,1715136639578,-150.59,0.0001299,2]
[326607658,1715136639588,-150.59,0.0001299,2]
[326607660,1715136639597,-150.59,0.0001299,2]
[326607662,1715136639607,-329.65099711,0.00013,2]
[326607664,1715136639616,-3047625.84935679,0.00013,2]
[326607666,1715136639628,-1027704.55799199,0.00013,2]
[326607668,1715136639640,-635.29858565,0.00013,2]
[326607671,1715136639652,-771.07115909,0.00013,2]
[326607673,1715136639663,-882.06164822,0.00013,2]
[326607675,1715136639674,-14235.335343,0.00013,2]
[326607677,1715136639688,-2611.75413778,0.00013,2]
[326607823,1715136641081,-664.75335024,0.00013,2]
[326607827,1715136641093,-605.56873832,0.00013,2]
[326607829,1715136641104,-717.30100266,0.00013,2]
[326607832,1715136641116,-5000.0,0.00013,2]
[326607834,1715136641127,-5036.34045209,0.00013,2]
[326607836,1715136641138,-239433.26,0.00013,2]
[326607838,1715136641149,-1004.5932,0.00013,2]
[326607840,1715136641160,-950.36,0.00013,2]
[326607907,1715136641794,-515.04824103,0.00013,2]
[326607981,1715136643254,-49187.50473394,0.00013,2]
[326607990,1715136645731,-8612.29288161,0.00013,2]
[326607992,1715136645743,-470.23000002,0.00013,2]
[326607993,1715136645755,-6399.8147,0.00013,2]
[326607994,1715136647917,-263.63284643,0.00013,2]
[326607995,1715136647928,-3639.3868,0.00013,2]
[326607996,1715136649656,-38722.4193582,0.00013,2]
[326607997,1715136653742,300.64283105,9.999e-05,2]
[326607998,1715136660848,302.46197214,9.999e-05,2]
[326607999,1715136667143,600.0,7.499e-05,2]
[326608000,1715136692168,1376.28612306,9.999e-05,2]
[326608001,1715136712156,603.87652241,7.499e-05,2]
[326608002,1715137087639,366.31861737,7.499e-05,2]
[326608003,1715137103712,366.84911597,7.499e-05,2]
[326608004,1715137106102,3393.04457553,7.499e-05,2]
[326608005,1715137106133,23185.61670434,7.499e-05,2]
[326608006,1715137109271,2544.85572424,5.624e-05,2]
[326608007,1715137121594,215.60807143,7.499e-05,2]
[326608008,1715137125195,1535.85180376,5.624e-05,2]
[326608009,1715137125389,7509.83070935,7.499e-05,2]
[326608010,1715137141332,150.0,7.499e-05,2]
[326608011,1715137141358,6591.7809466,7.499e-05,2]
[326608014,1715137457597,250.0,0.00018,30]
[326608017,1715137832645,-883.54995,0.00010353,2]
[326608019,1715137832661,-846.47,0.00010353,2]
[326608020,1715137832672,-350.2299999,0.00010353,2]
[326608021,1715137832683,-818.84258587,0.00010353,2]
[326608022,1715137832692,-1119.41382353,0.00010453,2]
[326608023,1715137832702,-865.06128059,0.00010453,2]
[326608024,1715137832860,-9499.39207902,0.00010453,2]
[326608025,1715137832871,-43315.58540252,0.00010453,2]
[326608026,1715137832880,-53680.03876213,0.00010453,2]
[326608027,1715137832889,-53680.03876213,0.00010453,2]
[326608028,1715137832899,-4737.07272896,0.00010454,2]
[326608029,1715137832907,-2359.43620527,0.00010455,2]
[326608030,1715137832917,-1787.06560171,0.00010456,2]
[326608031,1715137832926,-1330.34381026,0.00010459,2]
[326608032,1715137832938,-358.22005688,0.00010459,2]
[326608033,1715137832950,-13668.38506858,0.00010459,2]
[326608034,1715137832961,-20.97596428,0.00010459,2]
[326608035,1715137832970,-150.0,0.00010975,2]
[326608036,1715137832979,-150.0,0.00010975,2]
[326608037,1715137832988,-328.65616655,0.00010976,2]
[326608038,1715137832998,-250.0,0.00011196,2]
[326608039,1715137833008,-159.77,0.00011259,2]
[326608040,1715137833017,-159.77,0.00011308,2]
[326608041,1715137833026,-138.4567245,0.00011357,2]
[326608042,1715137833038,-21.3132755,0.00011357,2]
[326608043,1715137833047,-159.77,0.00011406,2]
[326608044,1715137833056,-159.77,0.00011455,2]
[326608045,1715137833065,-158.17649238,0.00011456,2]
[326608046,1715137833074,-400.0,0.00011496,2]
[326608047,1715137833084,-499.99,0.00011496,2]
[326608048,1715137833094,-159.77,0.00011503,2]
[326608049,1715137833103,-189.78,0.00011546,2]
[326608050,1715137833112,-159.77,0.00011552,2]
[326608051,1715137833122,-445.51154896,0.00011554,2]
[326608052,1715137833132,-318.60444364,0.00011554,2]
[326608053,1715137833141,-372.30807629,0.00011554,2]
[326608054,1715137833151,-370.54929492,0.00011555,2]
[326608055,1715137833160,-6179.93778713,0.00011555,2]
[326608056,1715137833172,-3679.95950462,0.00011555,2]
[326608057,1715137833182,-1788.54049538,0.00011556,2]
[326608107,1715137840957,-53680.03876213,0.00010453,2]
[326608114,1715137840969,-243211.45950462,0.00011556,2]
[326608116,1715137840979,-999.99,0.00011556,2]
[326608119,1715137840990,-24881.14,0.00011556,2]
[326608121,1715137841001,-11698.36,0.00011577,2]
[326608123,1715137841011,-159.77,0.00011601,2]
[326608126,1715137841021,-150.0,0.00011608,2]
[326608129,1715137841032,-159.77,0.0001165,2]
[326608131,1715137841042,-159.77,0.00011699,2]
[326608133,1715137841052,-159.77,0.00011748,2]
[326608135,1715137841062,-159.77,0.00011797,2]
[326608137,1715137841072,-159.77,0.00011846,2]
[326608139,1715137841081,-2105.48982895,0.00012,2]
[326608141,1715137841092,-500.0,0.000126,4]
[326608143,1715137841102,-1100.0,0.000127,4]
[326608145,1715137841112,-838.04946646,0.00012794,2]
[326608147,1715137841122,-1700.0,0.000128,4]
[326608149,1715137841133,-518.6589033,0.00012822,2]
[326608151,1715137841142,-184.33,0.00012848,2]
[326608153,1715137841152,-14783.0,0.00012883,2]
[326608155,1715137841162,-1000.0,0.00012899,2]
[326608157,1715137841172,-154.89268491,0.000129,2]
[326608159,1715137841182,-169.1944016,0.000129,2]
[326608161,1715137841192,-45866.65270689,0.000129,2]
[326608163,1715137841202,-2300.0,0.000129,4]
[326608165,1715137841212,-879.00709502,0.000129,2]
[326608167,1715137841221,-203.08660776,0.000129,2]
[326608169,1715137841231,-1444.8869307,0.000129,2]
[326608171,1715137841241,-400.0,0.00012933,2]
[326608173,1715137841251,-225.37045452,0.00012989,2]
[326608175,1715137841262,-150.59,0.00012989,2]
[326608176,1715137841271,-150.59,0.00012989,2]
[326608178,1715137841281,-150.59,0.00012989,2]
[326608180,1715137841291,-189.78,0.00012989,2]
[326608182,1715137841301,-189.78,0.00012989,2]
[326608185,1715137841311,-189.78,0.00012989,2]
[326608186,1715137841322,-189.78,0.00012989,2]
[326608188,1715137841332,-150.59,0.0001299,2]
[326608191,1715137841342,-150.59,0.0001299,2]
[326608193,1715137841352,-150.59,0.0001299,2]
[326608195,1715137841362,-150.59,0.0001299,2]
[326608197,1715137841372,-150.59,0.0001299,2]
[326608199,1715137841382,-150.59,0.0001299,2]
[326608200,1715137841392,-150.59,0.0001299,2]
[326608203,1715137841402,-150.59,0.0001299,2]
[326608204,1715137841412,-150.59,0.0001299,2]
[326608207,1715137841422,-150.59,0.0001299,2]
[326608209,1715137841432,-150.59,0.0001299,2]
[326608211,1715137841442,-150.59,0.0001299,2]
[326608213,1715137841452,-150.59,0.0001299,2]
[326608215,1715137841461,-150.59,0.0001299,2]
[326608217,1715137841471,-150.59,0.0001299,2]
[326608219,1715137841480,-150.59,0.0001299,2]
[326608221,1715137841490,-189.78,0.0001299,2]
[326608223,1715137841500,-189.78,0.0001299,2]
[326608225,1715137841511,-189.78,0.0001299,2]
[326608227,1715137841521,-189.78,0.0001299,2]
[326608228,1715137841530,-189.78,0.0001299,2]
[326608231,1715137841540,-216.75000991,0.00012997,2]
[326608232,1715137841550,-784.2067776,0.00012998,2]
[326608234,1715137841559,-7208.67,0.00012999,2]
[326608237,1715137841570,-304225.46567148,0.00012999,2]
[326608239,1715137841583,-405.00005,0.00012999,2]
[326608241,1715137841596,-34019.66255212,0.00012999,2]
[326608244,1715137841608,-1935.27184627,0.00012999,2]
[326608246,1715137841621,-50007.06452374,0.00012999,2]
[326608248,1715137841632,-4474.71282104,0.00012999,2]
[326608250,1715137841645,-9893.07176134,0.00012999,2]
[326608253,1715137841658,-5101.000001,0.00012999,2]
[326608255,1715137841671,-1309.14461714,0.00012999,2]
[326608257,1715137841682,-2267.27363512,0.00012999,2]
[326608259,1715137841694,-222907.99300923,0.00012999,2]
[326608261,1715137841703,-663441.04432819,0.00013,2]
[326608263,1715137841713,-1034877.83678964,0.00013,2]
[326608265,1715137841723,-188.70189088,0.00013,2]
[326608267,1715137841733,-155.25,0.00013,2]
[326608269,1715137841744,-466.16042969,0.00013,2]
[326608271,1715137841755,-2000.0,0.00013,2]
[326608273,1715137841765,-200.0,0.00013,2]
[326608275,1715137841774,-2000.0,0.00013,2]
[326608277,1715137841784,-200.0,0.00013,2]
[326608279,1715137841793,-2903.50247,0.00013,2]
[326608281,1715137841803,-200.0,0.0001313,2]
[326608283,1715137841812,-2000.0,0.0001313,2]
[326608285,1715137841822,-200.0,0.0001313,2]
[326608287,1715137841832,-1013.45,0.00013151,2]
[326608289,1715137841842,-844.54,0.00013151,2]
[326608291,1715137841851,-200.0,0.00013261,2]
[326608293,1715137841861,-2000.0,0.00013261,2]
[326608295,1715137841870,-200.0,0.00013261,2]
[326608297,1715137841880,-200.0,0.00013394,2]
[326608299,1715137841890,-2000.0,0.00013394,2]
[326608301,1715137841900,-200.0,0.00013394,2]
[326608303,1715137841909,-750.11,0.00013425,2]
[326608305,1715137841918,-529.03,0.00013425,2]
[326608307,1715137841928,-1000.0,0.00013452,2]
[326608309,1715137841937,-200.0,0.00013528,2]
[326608311,1715137841947,-2000.0,0.00013528,2]
[326608313,1715137841957,-200.0,0.00013528,2]
[326608315,1715137841966,-200.0,0.00013699,2]
[326608317,1715137841975,-200.0,0.00013699,2]
[326608319,1715137841985,-2751.0,0.00013699,2]
[326608321,1715137841994,-500.0,0.00013699,2]
[326608323,1715137842004,-3868.2,0.00013699,2]
[326608325,1715137842014,-150.59,0.0001399,2]
[326608327,1715137842024,-282.1344729,0.00014,2]
[326608329,1715137842033,-155.10176546,0.00014,2]
[326608331,1715137842043,-15776.21237487,0.00014,2]
[326608333,1715137842053,-400.0,0.0001437,2]
[326608335,1715137842063,-200.0,0.00015,2]
[326608337,1715137842072,-618.85701396,0.00015,2]
[326608339,1715137842082,-155.0,0.00015,2]
[326608341,1715137842092,-257.33892331,0.00015,2]
[326608343,1715137842101,-8088.00084988,0.00015,2]
[326608345,1715137842110,-192.10040177,0.00015,2]
[326608346,1715137842121,-168.27103263,0.00015,2]
[326608348,1715137842131,-3052.63,0.00015051,2]
[326608351,1715137842141,-300.0,0.00015068,2]
[326608352,1715137842151,-200.0,0.000151,2]
[326608355,1715137842162,-1000.0,0.00015133,2]
[326608356,1715137842172,-971.0,0.000152,2]
[326608358,1715137842182,-2942.0,0.000154,3]
[326608373,1715137842192,-45866.65270678,0.00015536,2]
[326608376,1715137842330,-400.0,0.00015807,2]
[326608378,1715137842340,-166.88,0.00015831,2]
[326608380,1715137842350,-167.37,0.00015831,2]
[326608382,1715137842360,-17701.0,0.000159,5]
[326608384,1715137842370,-1587.74617919,0.00016,2]
[326608386,1715137842380,-153.8305885,0.00016098,2]
[326608388,1715137842389,-153.8305885,0.00016191,2]
[326608390,1715137842398,-155.94755228,0.00016241,2]
[326608392,1715137842407,-153.8305885,0.00016287,2]
[326608394,1715137842417,-200.0,0.00016318,2]
[326608396,1715137842426,-795.0,0.000164,2]
[326608398,1715137842435,-153.8305885,0.00016414,2]
[326608400,1715137842445,-300.0,0.00016438,2]
[326608402,1715137842454,-151.9145512,0.00016488,2]
[326608404,1715137842464,-1225.84618609,0.000165,2]
[326608406,1715137842473,-167.37,0.00016702,2]
[326608408,1715137842483,-182.43,0.00016712,2]
[326608410,1715137842492,-1000.0,0.00016815,2]
[326608412,1715137842501,-180.35146547,0.000169,2]
[326608414,1715137842511,-150.59,0.00016912,2]
[326608416,1715137842520,-29542.17,0.00016922,2]
[326608418,1715137842529,-3379.09,0.00016922,2]
[326608420,1715137842539,-854.51,0.00016922,2]
[326608423,1715137842548,-1749.7901495,0.00017,2]
[326608425,1715137842558,-3660.0,0.00017,2]
[326608426,1715137842568,-167.12,0.00017086,2]
[326608429,1715137842577,-166.88,0.00017137,2]
[326608431,1715137842588,-158.72050771,0.00017165,2]
[326608432,1715137842597,-400.0,0.00017245,2]
[326608434,1715137842607,-158.77689389,0.00017257,2]
[326608436,1715137842616,-156.8291587,0.00017258,2]
[326608438,1715137842625,-320.31484651,0.00017258,2]
[326608440,1715137842635,-154.19350589,0.00017384,2]
[326608443,1715137842645,-167.37,0.00017573,2]
[326608445,1715137842654,-155.94755228,0.00017688,2]
[326608447,1715137842666,-159.8249879,0.00017775,2]
[326608448,1715137842676,-4215.87522504,0.0001788,2]
[326608451,1715137842686,-4215.87522499,0.0001788,2]
[326608453,1715137842695,-4215.87522499,0.0001788,2]
[326608455,1715137842706,-279.57465782,0.0001791,2]
[326608457,1715137842715,-750.0,0.00018,3]
[326608459,1715137842724,-2000.0,0.00018,2]
[326608461,1715137842734,-200.0,0.00018,2]
[326608463,1715137842746,-1037.87625114,0.00018,2]
[326608464,1715137842755,-2903.50248,0.00018,2]
[326608466,1715137842765,-995.9726025,0.00018,2]
[326608469,1715137842775,-200.0,0.00018,2]
[326608471,1715137842784,-291.370452,0.00018082,2]
[326608472,1715137842793,-10000.0,0.00018084,2]
[326608475,1715137842802,-153.8305885,0.00018147,2]
[326608477,1715137842812,-45866.65270678,0.00018173,2]
[326608479,1715137842821,-2000.0,0.0001818,2]
[326608480,1715137842831,-200.0,0.0001818,2]
[326608482,1715137842840,-200.0,0.0001818,2]
[326608484,1715137842849,-158.72050771,0.0001822,2]
[326608486,1715137842860,-158.72050771,0.00018339,2]
[326608489,1715137842869,-153.8305885,0.00018347,2]
[326608491,1715137842879,-150.59,0.00018352,2]
[326608493,1715137842888,-2000.0,0.00018362,2]
[326608495,1715137842898,-200.0,0.00018362,2]
[326608496,1715137842908,-200.0,0.00018362,2]
[326608497,1715137842917,-154.19350589,0.00018378,2]
[326608498,1715137842926,-171.51745988,0.00018385,2]
[326608499,1715137842935,-166.88,0.00018444,2]
[326608500,1715137842944,-167.37,0.00018444,2]
[326608501,1715137842953,-27457.15732316,0.00018453,2]
[326608502,1715137842962,-167.12,0.00018496,2]
[326608503,1715137842972,-1000.0,0.00018496,2]
[326608504,1715137842981,-158.72050771,0.00018518,2]
[326608505,1715137842991,-2000.0,0.00018545,2]
[326608506,1715137843001,-200.0,0.00018545,2]
[326608507,1715137843010,-200.0,0.00018545,2]
[326608508,1715137843020,-156.13471876,0.00018616,2]
[326608509,1715137843029,-158.91730644,0.0001867,2]
[326608510,1715137843039,-892.0,0.000187,2]
[326608511,1715137843048,-260.8,0.000187,2]
[326608512,1715137843058,-353.0,0.000187,2]
[326608513,1715137843067,-1000.0,0.000187,2]
[326608514,1715137843077,-159.8249879,0.00018714,2]
[326608515,1715137843086,-2000.0,0.00018731,2]
[326608516,1715137843096,-200.0,0.00018731,2]
[326608517,1715137843105,-200.0,0.00018731,2]
[326608518,1715137843115,-291.370452,0.00018904,2]
[326608519,1715137843125,-330.56857725,0.00019,5]
[326608520,1715137843135,-5000.0,0.00019,2]
[326608521,1715137843144,-155.0,0.00019,2]
[326608522,1715137843154,-151.9145512,0.00019027,2]
[326608523,1715137843163,-1000.0,0.00019078,2]
[326608524,1715137843173,-10000.0,0.00019086,2]
[326608525,1715137843183,-154.89268491,0.00019167,2]
[326608526,1715137843192,-150.59,0.00019168,2]
[326608527,1715137843202,-150.59,0.00019168,2]
[326608528,1715137843211,-155.35337732,0.00019178,2]
[326608529,1715137843220,-502.19336558,0.00019178,2]
[326608530,1715137843230,-502.96805329,0.00019178,2]
[326608531,1715137843240,-502.65627513,0.00019178,2]
[326608532,1715137843249,-505.66840243,0.00019178,2]
[326608533,1715137843258,-502.98921536,0.00019178,2]
[326608534,1715137843269,-503.39466242,0.00019178,2]
[326608535,1715137843278,-502.81258293,0.00019178,2]
[326608536,1715137843287,-503.77753103,0.00019178,2]
[326608537,1715137843297,-503.54781248,0.00019178,2]
[326608538,1715137843307,-622.14529011,0.00019178,2]
[326608539,1715137843316,-190.27173915,0.00019178,2]
[326608540,1715137843326,-502.83063505,0.00019178,2]
[326608541,1715137843335,-501.41408314,0.00019178,2]
[326608542,1715137843345,-501.69359157,0.00019178,2]
[326608543,1715137843354,-500.87697274,0.00019178,2]
[326608544,1715137843363,-502.37081748,0.00019178,2]
[326608545,1715137843373,-502.17254039,0.00019178,2]
[326608546,1715137843383,-200.0241953,0.00019178,2]
[326608547,1715137843392,-501.3676341,0.00019178,2]
[326608548,1715137843402,-510.21733579,0.00019178,2]
[326608549,1715137843411,-514.8305363,0.00019178,2]
[326608550,1715137843420,-500.0,0.00019178,2]
[326608551,1715137843430,-500.24410018,0.00019178,2]
[326608552,1715137843439,-516.03357406,0.00019178,2]
[326608553,1715137843449,-518.80796787,0.00019178,2]
[326608554,1715137843459,-511.53455771,0.00019178,2]
[326608555,1715137843469,-500.0,0.00019178,2]
[326608556,1715137843479,-639.0727692,0.00019178,2]
[326608557,1715137843488,-506.16205299,0.00019178,2]
[326608558,1715137843497,-500.0,0.00019178,2]
[326608559,1715137843507,-565.41089281,0.00019178,2]
[326608560,1715137843517,-628.50994163,0.00019178,2]
[326608561,1715137843526,-508.29620172,0.00019178,2]
[326608562,1715137843535,-500.0,0.00019178,2]
[326608563,1715137843544,-500.0,0.00019178,2]
[326608564,1715137843554,-13040.24167655,0.00019178,2]
[326608565,1715137843564,-500.0,0.00019178,2]
[326608566,1715137843573,-512.01580937,0.00019178,2]
[326608567,1715137843582,-500.0,0.00019178,2]
[326608568,1715137843592,-502.47562667,0.00019178,2]
[326608569,1715137843601,-500.0,0.00019178,2]
[326608570,1715137843611,-500.0,0.00019178,2]
[326608571,1715137843620,-502.53672502,0.00019178,2]
[326608572,1715137843630,-514.69235021,0.00019178,2]
[326608573,1715137843639,-507.57439555,0.00019178,2]
[326608574,1715137843649,-509.27133715,0.00019178,2]
[326608575,1715137843661,-500.0,0.00019178,2]
[326608576,1715137843671,-502.72,0.00019178,2]
[326608577,1715137843680,-412.23821579,0.00019178,2]
[326608578,1715137843689,-516.73284065,0.00019178,2]
[326608579,1715137843699,-515.1493548,0.00019178,2]
[326608580,1715137843708,-500.0,0.00019178,2]
[326608581,1715137843718,-500.0,0.00019178,2]
[326608582,1715137843728,-500.0,0.00019178,2]
[326608583,1715137843737,-438.71126459,0.00019178,2]
[326608584,1715137843747,-509.03009277,0.00019178,2]
[326608585,1715137843756,-515.86391094,0.00019178,2]
[326608586,1715137843766,-500.0,0.00019178,2]
[326608587,1715137843775,-510.47675595,0.00019178,2]
[326608588,1715137843784,-507.14145569,0.00019178,2]
[326608589,1715137843793,-500.0,0.00019178,2]
[326608590,1715137843802,-508.98792384,0.00019178,2]
[326608591,1715137843811,-508.96886371,0.00019178,2]
[326608592,1715137843820,-500.0,0.00019178,2]
[326608593,1715137843830,-500.0,0.00019178,2]
[326608594,1715137843840,-500.0,0.00019178,2]
[326608595,1715137843849,-500.0,0.00019178,2]
[326608596,1715137843858,-523.65650801,0.00019178,2]